bitfinex/quotes_BTCUSD_20240611
["timestamp","ask_amount","ask_price","bid_price","bid_amount"]
[1718117494104,2.85299386,67025.0,67024.0,0.001946]
[1718117494510,2.89761031,67025.0,67024.0,0.001946]
[1718117494721,1.75661766,67010.0,67009.0,0.009405]
[1718117494933,1.75661766,67010.0,67005.0,0.009405]
[1718117494934,1.23808266,67006.0,67005.0,0.009405]
[1718117495104,0.69036266,66996.0,66995.0,0.009405]
[1718117495330,1.08394459,66996.0,66995.0,0.009405]
[1718117495534,1.66329351,66996.0,66995.0,0.009405]
[1718117495744,1.85951344,66996.0,66995.0,0.009405]
[1718117495975,2.04091344,66996.0,66995.0,0.009405]
[1718117496156,1.85951344,66996.0,66995.0,0.009405]
[1718117496368,2.04091344,66996.0,66995.0,0.009405]
[1718117496610,2.00371845,66996.0,66995.0,0.009405]
[1718117497020,2.00371845,66996.0,66995.0,0.010405]
[1718117497021,1.82931845,66996.0,66995.0,0.010405]
[1718117497211,1.93332166,66996.0,66995.0,0.010405]
[1718117497391,1.92632166,66996.0,66995.0,0.009405]
[1718117498002,1.24360173,66996.0,66995.0,0.009405]
[1718117498206,1.01335386,66996.0,66995.0,0.009405]
[1718117498572,0.40179186,66996.0,66995.0,0.009405]
[1718117498890,0.25747193,66996.0,66995.0,0.009405]
[1718117499095,0.25747193,66996.0,66995.0,0.090005]
[1718117499096,0.24347193,66996.0,66995.0,0.090005]
[1718117499294,0.24347193,66996.0,66995.0,0.091005]
[1718117499295,0.25147193,66996.0,66995.0,0.091005]
[1718117499498,0.26547193,66996.0,66995.0,0.091005]
[1718117499727,0.26547193,66996.0,66995.0,0.240269]
[1718117499902,0.25747193,66996.0,66995.0,0.239269]
[1718117500360,0.25747193,66996.0,66995.0,0.090005]
[1718117500973,0.25747193,66996.0,66995.0,0.239269]
[1718117500974,0.04410927,66996.0,66995.0,0.239269]
[1718117501171,0.06186476,66996.0,66995.0,0.239269]
[1718117501362,0.03175549,66996.0,66995.0,0.239269]
[1718117501592,0.06245925,66996.0,66995.0,0.239269]
[1718117501973,0.24176456,66996.0,66995.0,0.239269]
[1718117502357,0.06145925,66996.0,66995.0,0.239269]
[1718117502713,0.02970376,66996.0,66995.0,0.56428707]
[1718117502928,0.001,66996.0,66995.0,0.56428707]
[1718117504221,0.03175549,67003.0,67002.0,0.149249]
[1718117504616,0.0616953,67003.0,67002.0,0.149249]
[1718117504855,0.03175549,67003.0,67002.0,0.149249]
[1718117505114,0.02993981,67003.0,67002.0,0.16694714]
[1718117505336,0.02993981,67003.0,67002.0,0.57841707]
[1718117505575,0.03175549,67015.0,67014.0,0.149222]
[1718117505800,0.17930531,67019.0,67018.0,0.149213]
[1718117505801,0.03175549,67019.0,67018.0,0.149213]
[1718117507144,0.2110608,67019.0,67018.0,0.149213]
[1718117508384,0.2120608,67019.0,67018.0,0.155213]
[1718117509432,0.03275549,67019.0,67018.0,0.155213]
[1718117509641,0.001,67019.0,67018.0,0.155213]
[1718117509844,0.001,67019.0,67018.0,0.314613]
[1718117510490,0.001,67019.0,67018.0,0.33231114]
[1718117510700,0.2110608,67026.0,67018.0,0.33231114]
[1718117510701,0.03175549,67026.0,67025.0,0.149198]
[1718117511565,0.24121299,67026.0,67025.0,0.149198]
[1718117511847,0.24351485,67026.0,67025.0,0.149198]
[1718117512281,0.24451485,67026.0,67025.0,0.155198]
[1718117512928,0.24451485,67026.0,67025.0,0.006]
[1718117513155,0.68770226,67026.0,67025.0,0.006]
[1718117513785,0.65403478,67026.0,67025.0,0.006]
[1718117514008,0.00230186,67017.0,67011.0,0.1502]
[1718117514225,0.17930531,67012.0,67011.0,0.1502]
[1718117514435,0.18160717,67012.0,67011.0,0.1502]
[1718117514641,0.24121299,67012.0,67011.0,0.1502]
[1718117515280,0.24121299,67012.0,67011.0,0.299429]
[1718117515488,0.24221299,67012.0,67011.0,0.305429]
[1718117515721,0.18030531,67012.0,67011.0,0.305429]
[1718117515939,0.2094575,67012.0,67011.0,0.299429]
[1718117516561,0.2094575,67012.0,67011.0,0.31769068]
[1718117516983,0.24121299,67012.0,67011.0,0.31769068]
[1718117517409,0.24351485,67012.0,67011.0,0.31769068]
[1718117517620,0.24451485,67012.0,67011.0,0.17349068]
[1718117517827,0.24351485,67012.0,67011.0,0.16749068]
[1718117518241,0.24451485,67012.0,67011.0,0.17349068]
[1718117518483,0.24451485,67012.0,67011.0,0.16749068]
[1718117518871,0.24551485,67012.0,67011.0,0.17349068]
[1718117519212,0.24321299,67012.0,67011.0,0.17349068]
[1718117520665,0.06390768,67012.0,67011.0,0.17349068]
[1718117521291,0.03215219,67012.0,67011.0,0.33550875]
[1718117521507,0.002,67012.0,67011.0,0.79496675]
[1718117523072,0.002,67012.0,67011.0,0.47881061]
[1718117523541,0.21536266,67012.0,67011.0,0.17349068]
[1718117523757,0.24554973,67012.0,67011.0,0.17349068]
[1718117524675,0.24554973,67012.0,67011.0,0.155229]
[1718117524915,0.24554973,67012.0,67011.0,0.006]
[1718117526551,0.26554973,67012.0,67011.0,0.006]
[1718117526763,0.40986966,67012.0,67011.0,0.006]
[1718117526976,0.53295663,67012.0,67011.0,0.006]
[1718117527431,0.68218363,67012.0,67011.0,0.006]
[1718117527658,0.68218363,67012.0,66998.0,0.149257]
[1718117527659,0.2110608,66999.0,66998.0,0.149257]
[1718117527890,0.21336266,66999.0,66998.0,0.149257]
[1718117528132,0.24354973,66999.0,66998.0,0.149257]
[1718117528350,0.24124787,66999.0,66998.0,0.149257]
[1718117528576,0.24354973,66999.0,66998.0,0.149257]
[1718117528999,0.24354973,66999.0,66995.0,0.009405]
[1718117529231,0.21336266,66996.0,66995.0,0.009405]
[1718117529885,0.24354973,66996.0,66995.0,0.009405]
[1718117531990,0.24454973,66996.0,66995.0,0.013405]
[1718117532352,0.24554973,66996.0,66995.0,0.017405]
[1718117538969,0.21536266,66996.0,66995.0,0.017405]
[1718117539171,0.2452399,66996.0,66995.0,0.017405]
[1718117541344,0.31739986,66996.0,66995.0,0.017405]
[1718117541741,0.33739986,66996.0,66995.0,0.017405]
[1718117541966,0.70277758,66996.0,66995.0,0.017405]
[1718117542829,0.70077758,66996.0,66995.0,0.009405]
[1718117543155,0.70677758,66996.0,66995.0,0.009405]
[1718117543355,0.70177758,66996.0,66995.0,0.009405]
[1718117543777,0.70677758,66996.0,66995.0,0.009405]
[1718117544661,0.70177758,66996.0,66995.0,0.009405]
[1718117544861,0.70077758,66996.0,66995.0,0.009405]
[1718117545299,0.70777758,66996.0,66995.0,0.010405]
[1718117546308,0.63598179,66996.0,66995.0,0.010405]
[1718117546733,0.64798179,66996.0,66995.0,0.010405]
[1718117547924,0.63606729,66996.0,66995.0,0.010405]
[1718117549391,0.61606729,66996.0,66995.0,0.010405]
[1718117549564,0.39464533,66996.0,66995.0,0.010405]
[1718117550997,0.41464533,66996.0,66995.0,0.010405]
[1718117551418,0.56390733,66996.0,66995.0,0.010405]
[1718117552196,0.76390733,66996.0,66995.0,0.010405]
[1718117552433,1.12530733,66996.0,66995.0,0.010405]
[1718117552649,1.55768565,66996.0,66995.0,0.010405]
[1718117552861,1.63511603,66996.0,66995.0,0.010405]
[1718117553076,1.90617333,66996.0,66995.0,0.010405]
[1718117554452,2.20469833,66996.0,66995.0,0.010405]
[1718117554659,1.90617333,66996.0,66995.0,0.010405]
[1718117557957,1.90617674,66996.0,66995.0,0.010405]
[1718117559192,2.36170174,66996.0,66995.0,0.010405]
[1718117559393,2.06317674,66996.0,66995.0,0.010405]
[1718117559616,2.16179435,66996.0,66995.0,0.010405]
[1718117560374,2.73423335,66996.0,66995.0,0.010405]
[1718117560548,3.03275835,66996.0,66995.0,0.010405]
[1718117561034,3.29703906,66996.0,66995.0,0.010405]
[1718117561373,3.29003906,66996.0,66995.0,0.009405]
[1718117561583,2.99151406,66996.0,66995.0,0.009405]
[1718117561789,2.54215106,66996.0,66995.0,0.010405]
[1718117562001,2.27787035,66996.0,66995.0,0.010405]
[1718117562210,2.24401703,66996.0,66995.0,0.010405]
[1718117562409,2.23201703,66996.0,66995.0,0.010405]
[1718117563525,2.53054203,66996.0,66995.0,0.010405]
[1718117563928,2.23201703,66996.0,66995.0,0.010405]
[1718117564158,2.24601703,66996.0,66995.0,0.010405]
[1718117565235,2.54454203,66996.0,66995.0,0.010405]
[1718117567516,2.41918705,66996.0,66995.0,0.010405]
[1718117567727,2.54157045,66996.0,66995.0,0.010405]
[1718117569144,2.58605458,66996.0,66995.0,0.010405]
[1718117569368,2.84009545,66996.0,66995.0,0.010405]
[1718117569568,2.80294176,66996.0,66995.0,0.010405]
[1718117569769,2.624945,66996.0,66995.0,0.010405]
[1718117569971,2.54158165,66996.0,66995.0,0.010405]
[1718117570149,2.58615631,66996.0,66995.0,0.010405]
[1718117570812,2.54158165,66996.0,66995.0,0.010405]
[1718117571160,2.58615631,66996.0,66995.0,0.010405]
[1718117571789,2.54158165,66996.0,66995.0,0.010405]
[1718117572529,2.42550565,66996.0,66995.0,0.010405]
[1718117573154,2.57725465,66996.0,66995.0,0.010405]
[1718117573318,2.55913565,66996.0,66995.0,0.010405]
[1718117573526,2.47009952,66996.0,66995.0,0.010405]
[1718117573708,2.22550565,66996.0,66995.0,0.010405]
[1718117573908,2.42550565,66996.0,66995.0,0.010405]
[1718117574304,2.47009952,66996.0,66995.0,0.010405]
[1718117574708,2.47009656,66996.0,66995.0,0.010405]
[1718117575728,2.42550269,66996.0,66995.0,0.010405]
[1718117577575,2.12697769,66996.0,66995.0,0.010405]
[1718117577745,2.1828196,66996.0,66995.0,0.010405]
[1718117577953,2.12697769,66996.0,66995.0,0.010405]
[1718117578153,2.13818168,66996.0,66995.0,0.010405]
[1718117578307,2.1828196,66996.0,66995.0,0.010405]
[1718117578914,1.9828196,66996.0,66995.0,0.010405]
[1718117579114,2.30837769,66996.0,66995.0,0.010405]
[1718117579332,2.00668168,66996.0,66995.0,0.010405]
[1718117579532,2.04011561,66996.0,66995.0,0.010405]
[1718117579740,1.95761561,66996.0,66995.0,0.010405]
[1718117580124,1.75761561,66996.0,66995.0,0.010405]
[1718117580328,1.12597467,66996.0,66995.0,0.010405]
[1718117580552,0.76573276,66996.0,66995.0,0.160705]
[1718117580978,0.68829073,66996.0,66995.0,0.160705]
[1718117581386,0.68129073,66996.0,66995.0,0.159705]
[1718117581843,0.78929073,66996.0,66995.0,0.160705]
[1718117582276,0.76929073,66996.0,66995.0,0.160705]
[1718117582492,0.77829073,66996.0,66995.0,0.160705]
[1718117582712,0.65590733,66996.0,66995.0,0.160705]
[1718117582884,0.66890733,66996.0,66995.0,0.160705]
[1718117583060,0.67590733,66996.0,66995.0,0.160705]
[1718117583222,0.67590733,66996.0,66995.0,0.159705]
[1718117583223,0.66790733,66996.0,66995.0,0.159705]
[1718117583428,0.65290733,66996.0,66995.0,0.159705]
[1718117583657,0.65590733,66996.0,66995.0,0.159705]
[1718117583857,0.65590733,66996.0,66995.0,0.237605]
[1718117584085,0.65290733,66996.0,66995.0,0.237605]
[1718117584753,0.73365178,66996.0,66995.0,0.237605]
[1718117584966,0.75665178,66996.0,66995.0,0.009405]
[1718117585186,0.8977324,66996.0,66995.0,0.009405]
[1718117585404,1.3962574,66996.0,66995.0,0.009405]
[1718117585596,0.8977324,66996.0,66995.0,0.009405]
[1718117585813,0.86150294,66996.0,66995.0,0.009405]
[1718117586019,1.19632096,66996.0,66995.0,0.009405]
[1718117586225,1.24095888,66996.0,66995.0,0.009405]
[1718117586434,0.94243388,66996.0,66995.0,0.009405]
[1718117586736,0.96468767,66996.0,66995.0,0.009405]
[1718117586995,0.89779686,66996.0,66995.0,0.009405]
[1718117587410,0.94248373,66996.0,66995.0,0.009405]
[1718117587636,0.72266294,66996.0,66995.0,0.009405]
[1718117587819,0.72266294,66996.0,66995.0,0.242505]
[1718117587820,0.24002354,66996.0,66995.0,0.242505]
[1718117589390,0.2220608,66996.0,66995.0,0.242505]
[1718117589802,0.2399012,66996.0,66995.0,0.242505]
[1718117591245,0.06059589,66996.0,66995.0,0.242505]
[1718117591683,0.06059589,66996.0,66995.0,0.391769]
[1718117591896,0.06059589,66996.0,66995.0,0.242505]
[1718117591897,0.31436302,66996.0,66995.0,0.242505]
[1718117592335,0.31206116,66996.0,66995.0,0.242505]
[1718117593354,0.30906116,66996.0,66995.0,0.242505]
[1718117593560,0.05759589,66996.0,66995.0,0.242505]
[1718117593767,0.05759589,66996.0,66995.0,0.391769]
[1718117594178,0.03975549,66996.0,66995.0,0.391769]
[1718117594381,0.04966343,66996.0,66995.0,0.391769]
[1718117594777,0.05366343,66996.0,66995.0,0.391769]
[1718117595178,0.23296874,66996.0,66995.0,0.391769]
[1718117595381,0.2352706,66996.0,66995.0,0.391769]
[1718117596250,0.23296874,66996.0,66995.0,0.242505]
[1718117596427,0.2352706,66996.0,66995.0,0.242505]
[1718117596922,0.58939139,66996.0,66995.0,0.009405]
[1718117597349,0.54885253,66996.0,66995.0,0.009405]
[1718117598775,0.52885253,66996.0,66995.0,0.009405]
[1718117600480,0.54885253,66996.0,66995.0,0.009405]
[1718117610865,0.52885253,66996.0,66995.0,0.009405]
[1718117614598,0.52785253,66996.0,66995.0,0.009405]
[1718117618687,0.54785253,66996.0,66995.0,0.009405]
[1718117620984,0.52785253,66996.0,66995.0,0.009405]
[1718117621211,0.54785253,66996.0,66995.0,0.009405]
[1718117621883,0.52785253,66996.0,66995.0,0.009405]
[1718117622282,0.54785253,66996.0,66995.0,0.009405]
[1718117622504,1.05076493,66996.0,66995.0,0.009405]
[1718117622735,1.48116885,66996.0,66995.0,0.009405]
[1718117623617,1.52582736,66996.0,66995.0,0.009405]
[1718117623847,1.32582736,66996.0,66995.0,0.009405]
[1718117624051,1.89251232,66996.0,66995.0,0.009405]
[1718117624389,1.86195512,66996.0,66995.0,0.009405]
[1718117624595,2.05828462,66996.0,66995.0,0.009405]
[1718117624803,1.85828462,66996.0,66995.0,0.009405]
[1718117625005,1.66195512,66996.0,66995.0,0.009405]
[1718117625224,1.21461772,66996.0,66995.0,0.009405]
[1718117625432,1.35231888,66996.0,66995.0,0.009405]
[1718117625644,1.27121772,66996.0,66995.0,0.009405]
[1718117626075,1.28521772,66996.0,66995.0,0.009405]
[1718117626507,1.28521772,66996.0,66995.0,0.010405]
[1718117626508,1.28421772,66996.0,66995.0,0.010405]
[1718117626919,1.29821772,66996.0,66995.0,0.010405]
[1718117627424,0.80489641,66996.0,66995.0,0.010405]
[1718117627635,0.76697296,66996.0,66995.0,0.010405]
[1718117627845,0.78697296,66996.0,66995.0,0.010405]
[1718117628765,0.85913292,66996.0,66995.0,0.010405]
[1718117628967,0.95397534,66996.0,66995.0,0.010405]
[1718117629537,0.94097534,66996.0,66995.0,0.009405]
[1718117630001,0.96697534,66996.0,66995.0,0.010405]
[1718117630159,1.26863962,66996.0,66995.0,0.010405]
[1718117630629,1.19803962,66996.0,66995.0,0.010405]
[1718117630840,1.26863962,66996.0,66995.0,0.010405]
[1718117632095,1.13167534,66996.0,66995.0,0.010405]
[1718117632302,0.96697534,66996.0,66995.0,0.010405]
[1718117632723,0.96694171,66996.0,66995.0,0.010405]
[1718117632929,0.87209929,66996.0,66995.0,0.010405]
[1718117633668,0.96666428,66996.0,66995.0,0.010405]
[1718117634588,0.9665561,66996.0,66995.0,0.010405]
[1718117634790,0.87211541,66996.0,66995.0,0.010405]
[1718117634989,0.87297541,66996.0,66995.0,0.010405]
[1718117638664,0.87297021,66996.0,66995.0,0.010405]
[1718117639590,0.87294867,66996.0,66995.0,0.010405]
[1718117639810,0.91769849,66996.0,66995.0,0.010405]
[1718117640375,0.84709849,66996.0,66995.0,0.010405]
[1718117640622,1.07034662,66996.0,66995.0,0.010405]
[1718117640822,1.1613599,66996.0,66995.0,0.010405]
[1718117641004,1.03110293,66996.0,66995.0,0.010405]
[1718117641338,0.96396195,66996.0,66995.0,0.010405]
[1718117641922,0.96296195,66996.0,66995.0,0.010405]
[1718117642130,0.96355112,66996.0,66995.0,0.010405]
[1718117642532,1.1613785,66996.0,66995.0,0.010405]
[1718117642900,2.36354843,66996.0,66995.0,0.010405]
[1718117643101,2.53384808,66996.0,66995.0,0.010405]
[1718117643556,2.44421654,66996.0,66995.0,0.010405]
[1718117643822,2.76050721,66996.0,66995.0,0.010405]
[1718117643983,2.91153787,66996.0,66995.0,0.010405]
[1718117644352,3.01302965,66996.0,66995.0,0.010405]
[1718117644671,3.26696005,66996.0,66995.0,0.009405]
[1718117644859,3.20999857,66996.0,66995.0,0.009405]
[1718117645058,3.54882817,66996.0,66995.0,0.010405]
[1718117645270,3.34722682,66996.0,66995.0,0.010405]
[1718117645429,3.67915672,66996.0,66995.0,0.010405]
[1718117645628,3.8784511,66996.0,66995.0,0.010405]
[1718117646204,3.54655025,66996.0,66995.0,0.010405]
[1718117646404,3.84507525,66996.0,66995.0,0.010405]
[1718117646607,4.04381606,66996.0,66995.0,0.010405]
[1718117646838,4.04381606,66996.0,66987.0,0.009405]
[1718117646839,2.04666266,66988.0,66987.0,0.009405]
[1718117647043,2.90281009,66988.0,66987.0,0.009405]
[1718117647282,2.8596203,66988.0,66987.0,0.009405]
[1718117648698,2.8736203,66988.0,66987.0,0.009405]
[1718117648924,2.8596203,66988.0,66987.0,0.009405]
[1718117649158,2.71530037,66988.0,66987.0,0.009405]
[1718117649376,2.72893333,66988.0,66987.0,0.009405]
[1718117649597,2.71493333,66988.0,66987.0,0.009405]
[1718117649824,2.94444433,66988.0,66987.0,0.009405]
[1718117650193,2.97244433,66988.0,66987.0,0.009405]
[1718117650411,3.22842041,66988.0,66987.0,0.009405]
[1718117650610,3.21442041,66988.0,66987.0,0.009405]
[1718117651098,3.14000103,66988.0,66987.0,0.009405]
[1718117651498,3.07291103,66988.0,66987.0,0.009405]
[1718117651877,2.91049003,66988.0,66987.0,0.009405]
[1718117652230,2.99978226,66988.0,66987.0,0.009405]
[1718117652570,2.7128055,66988.0,66987.0,0.009405]
[1718117652781,3.00030087,66988.0,66987.0,0.009405]
[1718117652970,4.58423979,66988.0,66987.0,0.009405]
[1718117653170,4.47258364,66988.0,66987.0,0.009405]
[1718117653392,3.68785564,66988.0,66987.0,0.009405]
[1718117653771,3.5036525,66988.0,66987.0,0.009405]
[1718117654133,3.3145325,66988.0,66987.0,0.009405]
[1718117654337,3.49777134,66988.0,66987.0,0.009405]
[1718117654761,3.3814784,66988.0,66987.0,0.009405]
[1718117655123,3.56317104,66988.0,66987.0,0.009405]
[1718117655295,1.77459766,66985.0,66982.0,0.009405]
[1718117655502,1.01905166,66984.0,66982.0,0.009405]
[1718117655753,1.71120848,66984.0,66982.0,0.009405]
[1718117655956,0.78065366,66983.0,66982.0,0.009405]
[1718117656144,1.74643873,66983.0,66982.0,0.009405]
[1718117656593,2.65818861,66983.0,66982.0,0.009405]
[1718117656797,2.80250854,66983.0,66982.0,0.009405]
[1718117656965,2.97930854,66983.0,66982.0,0.009405]
[1718117657177,3.97312104,66983.0,66982.0,0.009405]
[1718117657387,3.30211811,66983.0,66982.0,0.009405]
[1718117657651,1.64713793,66983.0,66982.0,0.009405]
[1718117657792,1.67037564,66983.0,66982.0,0.009405]
[1718117658140,1.66113793,66983.0,66982.0,0.009405]
[1718117658688,1.71974566,66983.0,66982.0,0.009405]
[1718117658903,1.74274566,66983.0,66982.0,0.009405]
[1718117659127,1.84245786,66983.0,66982.0,0.009405]
[1718117659559,1.82845786,66983.0,66982.0,0.009405]
[1718117659821,1.94157286,66983.0,66982.0,0.009405]
[1718117660035,1.82845786,66983.0,66982.0,0.009405]
[1718117660257,1.43765786,66983.0,66982.0,0.009405]
[1718117660470,1.53452734,66983.0,66982.0,0.161805]
[1718117660705,1.54852734,66983.0,66982.0,0.161805]
[1718117660955,1.52973048,66983.0,66982.0,0.161805]
[1718117661163,1.52973048,66983.0,66982.0,0.009405]
[1718117661400,1.87433821,66983.0,66982.0,0.009405]
[1718117661633,1.82973048,66983.0,66982.0,0.009405]
[1718117661868,1.81573048,66983.0,66982.0,0.009405]
[1718117663556,1.82973048,66983.0,66982.0,0.009405]
[1718117663748,1.84373048,66983.0,66982.0,0.009405]
[1718117664370,1.82973048,66983.0,66982.0,0.009405]
[1718117664507,1.84373048,66983.0,66982.0,0.009405]
[1718117664732,2.53511348,66983.0,66982.0,0.009405]
[1718117664949,2.53524682,66983.0,66982.0,0.009405]
[1718117665569,2.57983682,66983.0,66982.0,0.009405]
[1718117665968,2.62558282,66983.0,66982.0,0.009405]
[1718117666169,3.10150182,66983.0,66982.0,0.009405]
[1718117666383,2.95787582,66983.0,66982.0,0.009405]
[1718117666579,2.92987582,66983.0,66982.0,0.009405]
[1718117667043,2.94387582,66983.0,66982.0,0.009405]
[1718117667204,2.95787582,66983.0,66982.0,0.009405]
[1718117667626,2.91265582,66983.0,66982.0,0.009405]
[1718117668073,2.92786046,66983.0,66982.0,0.009405]
[1718117668274,2.95109863,66983.0,66982.0,0.009405]
[1718117668481,2.90650863,66983.0,66982.0,0.009405]
[1718117668909,2.65002563,66983.0,66982.0,0.009405]
[1718117669107,2.63578663,66983.0,66982.0,0.009405]
[1718117669284,1.74673268,66983.0,66982.0,0.009405]
[1718117669499,1.54681,66983.0,66982.0,0.009405]
[1718117669706,0.851427,66983.0,66982.0,0.009405]
[1718117669960,1.048227,66983.0,66982.0,0.252405]
[1718117670103,1.028227,66983.0,66982.0,0.252405]
[1718117670302,0.84304896,66983.0,66982.0,0.252405]
[1718117670558,0.73250784,66983.0,66982.0,0.252405]
[1718117670756,0.90930784,66983.0,66982.0,0.252405]
[1718117670983,1.02722622,66983.0,66982.0,0.252405]
[1718117671188,1.12348486,66983.0,66982.0,0.252405]
[1718117671399,1.13748486,66983.0,66982.0,0.252405]
[1718117671607,1.13745574,66983.0,66982.0,0.252405]
[1718117671977,1.13345574,66983.0,66982.0,0.252405]
[1718117672362,1.14745574,66983.0,66982.0,0.252405]
[1718117673299,1.17115536,66983.0,66982.0,0.252405]
[1718117673502,1.15115536,66983.0,66982.0,0.252405]
[1718117673703,0.92923698,66983.0,66982.0,0.252405]
[1718117674118,0.93823698,66983.0,66982.0,0.252405]
[1718117674971,0.76209196,66983.0,66982.0,0.252405]
[1718117675122,0.73839234,66983.0,66982.0,0.252405]
[1718117675941,0.70149409,66983.0,66982.0,0.252405]
[1718117676168,0.75844514,66983.0,66982.0,0.252405]
[1718117676644,0.78226942,66983.0,66982.0,0.252405]
[1718117677446,0.85296942,66983.0,66982.0,0.252405]
[1718117677682,0.82914514,66983.0,66982.0,0.252405]
[1718117679198,0.85238001,66983.0,66982.0,0.252405]
[1718117680004,0.86833372,66983.0,66982.0,0.252405]
[1718117680476,0.86826647,66983.0,66982.0,0.252405]
[1718117682674,0.84826647,66983.0,66982.0,0.252405]
[1718117682890,0.83231276,66983.0,66982.0,0.252405]
[1718117683085,0.80907789,66983.0,66982.0,0.252405]
[1718117683289,0.82907789,66983.0,66982.0,0.252405]
[1718117684313,0.85231272,66983.0,66982.0,0.252405]
[1718117684720,0.82907789,66983.0,66982.0,0.252405]
[1718117684929,0.85231268,66983.0,66982.0,0.252405]
[1718117685134,0.82907789,66983.0,66982.0,0.252405]
[1718117686128,0.99430288,66983.0,66982.0,0.252405]
[1718117688182,1.0389581,66983.0,66982.0,0.252405]
[1718117689276,0.99430288,66983.0,66982.0,0.252405]
[1718117689489,1.06141086,66983.0,66982.0,0.252405]
[1718117691461,1.06147907,66983.0,66982.0,0.252405]
[1718117691669,0.89948884,66983.0,66982.0,0.252405]
[1718117692117,0.87711869,66983.0,66982.0,0.252405]
[1718117692330,0.89711869,66983.0,66982.0,0.252405]
[1718117692537,0.83238086,66983.0,66982.0,0.252405]
[1718117692763,0.89948884,66983.0,66982.0,0.252405]
[1718117692969,0.83238086,66983.0,66982.0,0.252405]
[1718117693909,0.89948884,66983.0,66982.0,0.252405]
[1718117694115,0.87711653,66983.0,66982.0,0.252405]
[1718117694667,0.87711567,66983.0,66982.0,0.252405]
[1718117694868,0.85238086,66983.0,66982.0,0.252405]
[1718117695486,0.89711497,66983.0,66982.0,0.252405]
[1718117695922,0.85238086,66983.0,66982.0,0.252405]
[1718117696170,0.89711475,66983.0,66982.0,0.252405]
[1718117696375,0.95633249,66983.0,66982.0,0.252405]
[1718117696996,0.95633249,66983.0,66982.0,0.171505]
[1718117697200,0.9115986,66983.0,66982.0,0.171505]
[1718117697820,0.8747148,66983.0,66982.0,0.171505]
[1718117698005,0.9116046,66983.0,66982.0,0.171505]
[1718117701306,0.82641825,66983.0,66982.0,0.171505]
[1718117701509,0.89711825,66983.0,66982.0,0.171505]
[1718117701918,0.85241104,66983.0,66982.0,0.171505]
[1718117702130,0.83241104,66983.0,66982.0,0.171505]
[1718117702337,0.87714699,66983.0,66982.0,0.171505]
[1718117702755,0.83241104,66983.0,66982.0,0.171505]
[1718117703341,0.87714699,66983.0,66982.0,0.171505]
[1718117705055,0.80663633,66983.0,66982.0,0.171505]
[1718117705281,0.76190038,66983.0,66982.0,0.171505]
[1718117705645,0.83260038,66983.0,66982.0,0.171505]
[1718117706699,0.83259853,66983.0,66982.0,0.171505]
[1718117707420,0.85259853,66983.0,66982.0,0.171505]
[1718117708654,0.73218286,66983.0,66982.0,0.171505]
[1718117708851,0.76182296,66983.0,66982.0,0.171505]
[1718117709073,1.23937521,66983.0,66982.0,0.009405]
[1718117709276,1.30649105,66983.0,66982.0,0.009405]
[1718117709660,2.20545821,66983.0,66982.0,0.009405]
[1718117710048,2.44993384,66983.0,66982.0,0.009405]
[1718117710247,3.38530084,66983.0,66982.0,0.009405]
[1718117710464,3.48530084,66983.0,66982.0,0.009405]
[1718117710666,3.47130084,66983.0,66982.0,0.009405]
[1718117710871,3.90279694,66983.0,66982.0,0.009405]
[1718117711069,4.13649847,66983.0,66982.0,0.009405]
[1718117711276,4.13822695,66983.0,66982.0,0.009405]
[1718117711693,4.12822695,66983.0,66982.0,0.009405]
[1718117712087,4.14222695,66983.0,66982.0,0.009405]
[1718117712493,4.12822695,66983.0,66982.0,0.009405]
[1718117712696,4.29932695,66983.0,66982.0,0.009405]
[1718117712906,4.04998532,66983.0,66982.0,0.009405]
[1718117713112,4.27841026,66983.0,66982.0,0.009405]
[1718117713321,4.57699326,66983.0,66982.0,0.009405]
[1718117713539,4.57699326,66983.0,66959.0,0.2378]
[1718117713540,0.21118298,66960.0,66959.0,0.2378]
[1718117713761,0.59554491,66960.0,66959.0,0.2378]
[1718117714011,0.61145174,66960.0,66959.0,0.2378]
[1718117714190,0.64863242,66960.0,66959.0,0.2378]
[1718117714390,0.61145174,66960.0,66959.0,0.2378]
[1718117715485,0.38052998,66958.0,66957.0,0.5]
[1718117715695,0.59700987,66958.0,66957.0,0.5]
[1718117716108,0.6129167,66958.0,66957.0,0.5]
[1718117716434,0.5929167,66958.0,66957.0,0.5]
[1718117716664,0.6636167,66958.0,66957.0,0.5]
[1718117716878,0.5929167,66958.0,66957.0,0.5]
[1718117717097,0.6636167,66958.0,66957.0,0.5]
[1718117717474,0.6746167,66958.0,66957.0,0.5]
[1718117718196,0.23596763,66958.0,66957.0,0.7431]
[1718117718406,0.23808981,66958.0,66957.0,0.7431]
[1718117718820,0.24308981,66958.0,66957.0,0.7431]
[1718117719534,0.24096763,66958.0,66957.0,0.7331]
[1718117719740,0.24308981,66958.0,66957.0,0.7331]
[1718117720101,0.06166232,66958.0,66957.0,0.7331]
[1718117720399,0.24096763,66958.0,66957.0,0.7331]
[1718117721015,0.23596763,66958.0,66957.0,0.7331]
[1718117721772,0.22496763,66958.0,66957.0,0.7331]
[1718117721986,0.22708981,66958.0,66957.0,0.7331]
[1718117722188,0.30278981,66958.0,66957.0,0.7331]
[1718117724024,0.59145674,66958.0,66957.0,0.7331]
[1718117724200,0.59645674,66958.0,66957.0,0.7331]
[1718117725287,0.59145674,66958.0,66957.0,0.7331]
[1718117725702,0.60045674,66958.0,66957.0,0.7331]
[1718117726352,0.60345674,66958.0,66957.0,0.7331]
[1718117727351,0.62345674,66958.0,66957.0,0.49]
[1718117728690,0.60345674,66958.0,66957.0,0.49]
[1718117728870,0.62345674,66958.0,66957.0,0.49]
[1718117730505,0.60345674,66958.0,66957.0,0.49]
[1718117731524,0.62345674,66958.0,66957.0,0.49]
[1718117731681,0.86109391,66958.0,66957.0,0.49]
[1718117732296,1.06109391,66958.0,66957.0,0.49]
[1718117732733,1.09834821,66958.0,66957.0,0.49]
[1718117732996,0.99310822,66958.0,66957.0,0.49]
[1718117733241,1.19310822,66958.0,66957.0,0.49]
[1718117733696,0.99310822,66958.0,66957.0,0.49]
[1718117734143,1.0227301,66958.0,66957.0,0.49]
[1718117734362,0.78173292,66958.0,66957.0,0.49]
[1718117734589,0.82281104,66958.0,66957.0,0.49]